[Event "Titled Tuesday Blitz February 28 Late 2023"]
[White "Zochowski, Kacper"]
[Black "Golubka, Petro"]
[WhiteFideId "1125494"]
[BlackFideId "14114224"]
[WhiteElo "2222"]
[BlackElo "2404"]
[Result "0-1"]
[Round "04"]
[TimeControl "180+2"]
[Date "2023.02.28"]
[WhiteClock "0:00:16"]
[BlackClock "0:00:16"]

1. Nf3 {[%clk 0:02:39]}  Nc6 {[%clk 0:01:53]} 2. d4 {[%clk 0:02:38]}  d5 {[%clk 0:01:49]} 3. c4 {[%clk 0:02:38]}  e6 {[%clk 0:01:34]} 4. Nc3 {[%clk 0:02:34]}  Bb4 {[%clk 0:01:31]} 5. cxd5 {[%clk 0:02:33]}  exd5 {[%clk 0:01:31]} 6. Bf4 {[%clk 0:02:33]}  Nge7 {[%clk 0:01:30]} 7. e3 {[%clk 0:02:33]}  Ng6 {[%clk 0:01:30]} 8. Bg3 {[%clk 0:02:33]}  Bg4 {[%clk 0:01:29]} 9. Bd3 {[%clk 0:02:32]}  O-O {[%clk 0:01:29]} 10. h3 {[%clk 0:02:32]}  Bxf3 {[%clk 0:01:28]} 11. Qxf3 {[%clk 0:02:32]}  Nce7 {[%clk 0:01:27]} 12. O-O {[%clk 0:02:30]}  c6 {[%clk 0:01:26]} 13. h4 {[%clk 0:02:26]}  Re8 {[%clk 0:01:21]} 14. h5 {[%clk 0:02:26]}  Nf8 {[%clk 0:01:21]} 15. Ne2 {[%clk 0:02:25]}  Bd6 {[%clk 0:01:21]} 16. Bh4 {[%clk 0:02:25]}  Qd7 {[%clk 0:01:08]} 17. h6 {[%clk 0:02:23]}  Neg6 {[%clk 0:00:54]} 18. hxg7 {[%clk 0:02:03]}  Ne6 {[%clk 0:00:51]} 19. Bf6 {[%clk 0:02:02]}  Nxg7 {[%clk 0:00:50]} 20. g3 {[%clk 0:01:49]}  Qe6 {[%clk 0:00:49]} 21. Bg5 {[%clk 0:01:20]}  h5 {[%clk 0:00:37]} 22. Nf4 {[%clk 0:01:19]}  Bxf4 {[%clk 0:00:35]} 23. Bxf4 {[%clk 0:01:17]}  Qg4 {[%clk 0:00:31]} 24. Qxg4 {[%clk 0:00:56]}  hxg4 {[%clk 0:00:32]} 25. Be2 {[%clk 0:00:55]}  Nxf4 {[%clk 0:00:31]} 26. gxf4 {[%clk 0:00:55]}  f5 {[%clk 0:00:32]} 27. Bd3 {[%clk 0:00:56]}  Kf7 {[%clk 0:00:31]} 28. Kg2 {[%clk 0:00:56]}  Rh8 {[%clk 0:00:32]} 29. Rh1 {[%clk 0:00:57]}  Kf6 {[%clk 0:00:32]} 30. f3 {[%clk 0:00:54]}  a5 {[%clk 0:00:28]} 31. fxg4 {[%clk 0:00:42]}  fxg4 {[%clk 0:00:29]} 32. Rxh8 {[%clk 0:00:40]}  Rxh8 {[%clk 0:00:28]} 33. Kg3 {[%clk 0:00:41]}  Rh3+ {[%clk 0:00:26]} 34. Kxg4 {[%clk 0:00:40]}  Rxe3 {[%clk 0:00:24]} 35. Bh7 {[%clk 0:00:40]}  Ne6 {[%clk 0:00:23]} 36. Rh1 {[%clk 0:00:39]}  Nxd4 {[%clk 0:00:23]} 37. Bb1 {[%clk 0:00:35]}  Re2 {[%clk 0:00:23]} 38. Rh6+ {[%clk 0:00:35]}  Ke7 {[%clk 0:00:21]} 39. Rh7+ {[%clk 0:00:36]}  Kd6 {[%clk 0:00:21]} 40. Rxb7 {[%clk 0:00:37]}  Rg2+ {[%clk 0:00:22]} 41. Kh5 {[%clk 0:00:36]}  Rg1 {[%clk 0:00:23]} 42. Bg6 {[%clk 0:00:35]}  Rh1+ {[%clk 0:00:21]} 43. Kg5 {[%clk 0:00:35]}  Ne6+ {[%clk 0:00:22]} 44. Kf6 {[%clk 0:00:18]}  Nxf4 {[%clk 0:00:21]} 45. Be8 {[%clk 0:00:19]}  Rh6+ {[%clk 0:00:18]} 46. Kg5 {[%clk 0:00:19]}  Re6 {[%clk 0:00:18]} 47. Kxf4 {[%clk 0:00:14]}  Re4+ {[%clk 0:00:17]} 48. Kf3 {[%clk 0:00:13]}  Rxe8 {[%clk 0:00:18]} 49. Ra7 {[%clk 0:00:14]}  Rb8 {[%clk 0:00:17]} 50. b3 {[%clk 0:00:14]}  Rb5 {[%clk 0:00:18]} 51. Ke3 {[%clk 0:00:15]}  Kc5 {[%clk 0:00:18]} 52. Kd3 {[%clk 0:00:14]}  Kb6 {[%clk 0:00:19]} 53. Ra8 {[%clk 0:00:14]}  Rb4 {[%clk 0:00:19]} 54. Rb8+ {[%clk 0:00:12]}  Ka7 {[%clk 0:00:19]} 55. Rc8 {[%clk 0:00:13]}  Kb7 {[%clk 0:00:19]} 56. Rd8 {[%clk 0:00:13]}  Rh4 {[%clk 0:00:19]} 57. Kc3 {[%clk 0:00:14]}  Kb6 {[%clk 0:00:19]} 58. Rb8+ {[%clk 0:00:11]}  Ka7 {[%clk 0:00:19]} 59. Rc8 {[%clk 0:00:12]}  Kb7 {[%clk 0:00:20]} 60. Re8 {[%clk 0:00:13]}  Rg4 {[%clk 0:00:18]} 61. Re7+ {[%clk 0:00:13]}  Kb6 {[%clk 0:00:18]} 62. Re8 {[%clk 0:00:12]}  Rg2 {[%clk 0:00:18]} 63. Ra8 {[%clk 0:00:12]}  Rxa2 {[%clk 0:00:17]} 64. Rb8+ {[%clk 0:00:13]}  Kc7 {[%clk 0:00:17]} 65. Ra8 {[%clk 0:00:13]}  Kb7 {[%clk 0:00:17]} 66. Rd8 {[%clk 0:00:14]}  Rg2 {[%clk 0:00:16]} 67. Rd7+ {[%clk 0:00:14]}  Kb6 {[%clk 0:00:16]} 68. Rd8 {[%clk 0:00:14]}  Rg3+ {[%clk 0:00:16]} 69. Kc2 {[%clk 0:00:14]}  Rg4 {[%clk 0:00:16]} 70. Ra8 {[%clk 0:00:14]}  Rb4 {[%clk 0:00:16]} 71. Rb8+ {[%clk 0:00:15]}  Ka7 {[%clk 0:00:16]} 72. Rc8 {[%clk 0:00:15]}  Kb7 {[%clk 0:00:16]} 73. Rd8 {[%clk 0:00:16]}  a4 {[%clk 0:00:16]} 0-1


[Site "https://www.chess.com"]

[Event "Titled Tuesday Blitz February 28 Late 2023"]
[White "EREBUNI91"]
[Black "Martinez Reyes, Pedro Ramon"]
[BlackFideId "3901807"]
[WhiteElo "2714"]
[BlackElo "2340"]
[Result "1-0"]
[Round "04"]
[TimeControl "180+2"]
[Date "2023.02.28"]
[WhiteClock "0:00:13"]
[BlackClock "0:00:07"]

1. e4 {[%clk 0:03:00]}  c6 {[%clk 0:03:00]} 2. d4 {[%clk 0:03:00]}  d5 {[%clk 0:03:00]} 3. e5 {[%clk 0:03:01]}  Bf5 {[%clk 0:03:00]} 4. h4 {[%clk 0:03:01]}  h6 {[%clk 0:02:58]} 5. g4 {[%clk 0:03:00]}  Bd7 {[%clk 0:02:58]} 6. Be3 {[%clk 0:02:58]}  Qb6 {[%clk 0:02:49]} 7. c4 {[%clk 0:02:41]}  e6 {[%clk 0:02:35]} 8. Nd2 {[%clk 0:02:35]}  Bb4 {[%clk 0:02:28]} 9. Nf3 {[%clk 0:02:31]}  dxc4 {[%clk 0:02:24]} 10. Bxc4 {[%clk 0:02:29]}  Ne7 {[%clk 0:02:23]} 11. h5 {[%clk 0:02:22]}  Nd5 {[%clk 0:02:23]} 12. O-O {[%clk 0:02:18]}  Na6 {[%clk 0:01:57]} 13. Ne4 {[%clk 0:02:16]}  Be7 {[%clk 0:01:50]} 14. Qe2 {[%clk 0:01:50]}  Nab4 {[%clk 0:01:38]} 15. a3 {[%clk 0:01:47]}  Nxe3 {[%clk 0:01:37]} 16. fxe3 {[%clk 0:01:45]}  Nd5 {[%clk 0:01:37]} 17. Rac1 {[%clk 0:01:38]}  Qd8 {[%clk 0:00:53]} 18. Nd6+ {[%clk 0:01:34]}  Bxd6 {[%clk 0:00:51]} 19. exd6 {[%clk 0:01:35]}  O-O {[%clk 0:00:50]} 20. Ne5 {[%clk 0:01:33]}  Be8 {[%clk 0:00:44]} 21. e4 {[%clk 0:01:15]}  Nb6 {[%clk 0:00:44]} 22. Ng6 {[%clk 0:00:45]}  Qxd6 {[%clk 0:00:40]} 23. Nxf8 {[%clk 0:00:42]}  Qxd4+ {[%clk 0:00:16]} 24. Qf2 {[%clk 0:00:37]}  Qxf2+ {[%clk 0:00:14]} 25. Rxf2 {[%clk 0:00:38]}  Nxc4 {[%clk 0:00:14]} 26. Nxe6 {[%clk 0:00:35]}  Nxb2 {[%clk 0:00:10]} 27. Rxb2 {[%clk 0:00:27]}  fxe6 {[%clk 0:00:10]} 28. Rxb7 {[%clk 0:00:28]}  Rd8 {[%clk 0:00:08]} 29. Rxa7 {[%clk 0:00:24]}  e5 {[%clk 0:00:06]} 30. Rb1 {[%clk 0:00:22]}  Kf8 {[%clk 0:00:06]} 31. Rbb7 {[%clk 0:00:21]}  Rd3 {[%clk 0:00:05]} 32. Rxg7 {[%clk 0:00:20]}  Re3 {[%clk 0:00:03]} 33. Rh7 {[%clk 0:00:19]}  Rg3+ {[%clk 0:00:03]} 34. Kf2 {[%clk 0:00:17]}  Rxg4 {[%clk 0:00:04]} 35. Rh8+ {[%clk 0:00:13]}  Rg8 {[%clk 0:00:04]} 36. Rxg8+ {[%clk 0:00:14]}  Kxg8 {[%clk 0:00:05]} 37. Ra8 {[%clk 0:00:13]}  Kf7 {[%clk 0:00:05]} 38. a4 {[%clk 0:00:12]}  Ke7 {[%clk 0:00:06]} 39. a5 {[%clk 0:00:13]}  Bd7 {[%clk 0:00:06]} 40. a6 {[%clk 0:00:13]}  Kd6 {[%clk 0:00:07]} 41. a7 {[%clk 0:00:13]}  Kc7 {[%clk 0:00:07]} 42. Rh8 {[%clk 0:00:13]} 1-0


[Site "https://www.chess.com"]

[Event "Titled Tuesday Blitz February 28 Late 2023"]
[White "Toncheva, Nadya"]
[Black "Matinian, Nikita"]
[WhiteFideId "2924056"]
[BlackFideId "24129100"]
[WhiteElo "2101"]
[BlackElo "2422"]
[Result "0-1"]
[Round "04"]
[TimeControl "180+2"]
[Date "2023.02.28"]
[WhiteClock "0:00:07"]
[BlackClock "0:00:19"]

1. e4 {[%clk 0:03:00]}  c5 {[%clk 0:02:59]} 2. c3 {[%clk 0:02:59]}  Nf6 {[%clk 0:02:59]} 3. e5 {[%clk 0:02:59]}  Nd5 {[%clk 0:02:59]} 4. Nf3 {[%clk 0:03:00]}  Nc6 {[%clk 0:02:59]} 5. Bc4 {[%clk 0:03:00]}  Nb6 {[%clk 0:02:58]} 6. Bb3 {[%clk 0:03:00]}  c4 {[%clk 0:02:54]} 7. Bc2 {[%clk 0:03:00]}  d5 {[%clk 0:02:54]} 8. exd6 {[%clk 0:02:55]}  Qxd6 {[%clk 0:02:54]} 9. O-O {[%clk 0:02:54]}  Bg4 {[%clk 0:02:55]} 10. Re1 {[%clk 0:02:48]}  O-O-O {[%clk 0:02:52]} 11. b3 {[%clk 0:02:39]}  e5 {[%clk 0:02:41]} 12. Qe2 {[%clk 0:02:32]}  cxb3 {[%clk 0:02:13]} 13. axb3 {[%clk 0:02:30]}  f6 {[%clk 0:02:14]} 14. Na3 {[%clk 0:02:25]}  a6 {[%clk 0:02:08]} 15. b4 {[%clk 0:01:49]}  Nd5 {[%clk 0:01:59]} 16. b5 {[%clk 0:01:39]}  Nf4 {[%clk 0:01:59]} 17. Qe3 {[%clk 0:01:32]}  axb5 {[%clk 0:01:51]} 18. Nxb5 {[%clk 0:01:32]}  Qc5 {[%clk 0:01:47]} 19. Ra8+ {[%clk 0:00:43]}  Kd7 {[%clk 0:01:47]} 20. Rxd8+ {[%clk 0:00:43]}  Kxd8 {[%clk 0:01:48]} 21. Qxc5 {[%clk 0:00:30]}  Bxc5 {[%clk 0:01:47]} 22. Be4 {[%clk 0:00:30]}  Bxf3 {[%clk 0:01:41]} 23. gxf3 {[%clk 0:00:24]}  Nh3+ {[%clk 0:01:18]} 24. Kg2 {[%clk 0:00:24]}  Nxf2 {[%clk 0:01:17]} 25. d4 {[%clk 0:00:21]}  Nxe4 {[%clk 0:01:15]} 26. fxe4 {[%clk 0:00:20]}  exd4 {[%clk 0:01:07]} 27. cxd4 {[%clk 0:00:20]}  Bb4 {[%clk 0:01:05]} 28. Rd1 {[%clk 0:00:20]}  Re8 {[%clk 0:01:03]} 29. Kf3 {[%clk 0:00:19]}  Ke7 {[%clk 0:00:52]} 30. Bf4 {[%clk 0:00:17]}  Ra8 {[%clk 0:00:51]} 31. Nc7 {[%clk 0:00:15]}  Ra3+ {[%clk 0:00:50]} 32. Kg4 {[%clk 0:00:15]}  g6 {[%clk 0:00:42]} 33. Nd5+ {[%clk 0:00:15]}  Kf7 {[%clk 0:00:42]} 34. Nxb4 {[%clk 0:00:15]}  Nxb4 {[%clk 0:00:41]} 35. Rb1 {[%clk 0:00:15]}  h5+ {[%clk 0:00:39]} 36. Kh4 {[%clk 0:00:15]}  Ra4 {[%clk 0:00:27]} 37. Bd2 {[%clk 0:00:13]}  Nc6 {[%clk 0:00:20]} 38. Rxb7+ {[%clk 0:00:12]}  Kg8 {[%clk 0:00:20]} 39. Be3 {[%clk 0:00:09]}  Nxd4 {[%clk 0:00:20]} 40. Bxd4 {[%clk 0:00:09]}  Rxd4 {[%clk 0:00:20]} 41. Re7 {[%clk 0:00:10]}  Kf8 {[%clk 0:00:19]} 42. Re6 {[%clk 0:00:07]}  Kf7 {[%clk 0:00:20]} 43. Ra6 {[%clk 0:00:08]}  Rxe4+ {[%clk 0:00:20]} 44. Kg3 {[%clk 0:00:09]}  g5 {[%clk 0:00:21]} 45. Kf3 {[%clk 0:00:08]}  Rf4+ {[%clk 0:00:20]} 46. Kg3 {[%clk 0:00:08]}  Kg6 {[%clk 0:00:21]} 47. Rb6 {[%clk 0:00:08]}  h4+ {[%clk 0:00:21]} 48. Kh3 {[%clk 0:00:08]}  Kh5 {[%clk 0:00:21]} 49. Rb8 {[%clk 0:00:07]}  g4+ {[%clk 0:00:20]} 50. Kg2 {[%clk 0:00:08]}  Rc4 {[%clk 0:00:19]} 51. Rh8+ {[%clk 0:00:08]}  Kg5 {[%clk 0:00:19]} 52. Rg8+ {[%clk 0:00:09]}  Kf4 {[%clk 0:00:20]} 53. Rh8 {[%clk 0:00:09]}  h3+ {[%clk 0:00:20]} 54. Kf2 {[%clk 0:00:09]}  Rc2+ {[%clk 0:00:20]} 55. Kg1 {[%clk 0:00:10]}  Kf3 {[%clk 0:00:20]} 56. Rc8 {[%clk 0:00:07]}  Rxc8 {[%clk 0:00:19]} 0-1


[Site "https://www.chess.com"]

[Event "Titled Tuesday Blitz February 28 Late 2023"]
[White "Kleinman, Michael"]
[Black "Lewtak, Damian"]
[WhiteFideId "2609479"]
[BlackFideId "1141724"]
[WhiteElo "2287"]
[BlackElo "2302"]
[Result "1/2-1/2"]
[Round "04"]
[TimeControl "180+2"]
[Date "2023.02.28"]
[WhiteClock "0:00:21"]
[BlackClock "0:00:18"]

1. e4 {[%clk 0:03:00]}  c5 {[%clk 0:02:55]} 2. Nf3 {[%clk 0:03:01]}  Nc6 {[%clk 0:02:55]} 3. Bb5 {[%clk 0:03:00]}  g6 {[%clk 0:02:54]} 4. Bxc6 {[%clk 0:03:00]}  bxc6 {[%clk 0:02:55]} 5. d3 {[%clk 0:02:56]}  Bg7 {[%clk 0:02:53]} 6. h4 {[%clk 0:02:56]}  h5 {[%clk 0:02:52]} 7. Nc3 {[%clk 0:02:55]}  d6 {[%clk 0:02:43]} 8. Ng5 {[%clk 0:02:52]}  f6 {[%clk 0:02:40]} 9. Nh3 {[%clk 0:02:52]}  e5 {[%clk 0:02:39]} 10. Be3 {[%clk 0:02:50]}  Nh6 {[%clk 0:02:36]} 11. f3 {[%clk 0:02:48]}  Be6 {[%clk 0:02:31]} 12. Qd2 {[%clk 0:02:48]}  Qd7 {[%clk 0:02:31]} 13. a3 {[%clk 0:02:46]}  Rb8 {[%clk 0:02:30]} 14. b4 {[%clk 0:02:45]}  cxb4 {[%clk 0:02:25]} 15. axb4 {[%clk 0:02:46]}  Rb7 {[%clk 0:02:26]} 16. Ke2 {[%clk 0:02:42]}  Nf7 {[%clk 0:02:23]} 17. d4 {[%clk 0:02:24]}  Bc4+ {[%clk 0:02:20]} 18. Kf2 {[%clk 0:02:24]}  O-O {[%clk 0:02:19]} 19. d5 {[%clk 0:02:20]}  cxd5 {[%clk 0:02:15]} 20. Nxd5 {[%clk 0:02:20]}  f5 {[%clk 0:02:09]} 21. Bg5 {[%clk 0:02:12]}  Nxg5 {[%clk 0:02:05]} 22. Nxg5 {[%clk 0:02:09]}  Bh6 {[%clk 0:01:58]} 23. Rhe1 {[%clk 0:02:06]}  Bxg5 {[%clk 0:01:57]} 24. Qxg5 {[%clk 0:02:05]}  Kg7 {[%clk 0:01:51]} 25. Ne3 {[%clk 0:01:55]}  Be6 {[%clk 0:01:43]} 26. exf5 {[%clk 0:01:48]}  Bxf5 {[%clk 0:01:44]} 27. c3 {[%clk 0:01:32]}  Be6 {[%clk 0:01:40]} 28. Kg1 {[%clk 0:01:28]}  Qe7 {[%clk 0:01:24]} 29. Qxe7+ {[%clk 0:01:21]}  Rxe7 {[%clk 0:01:25]} 30. Ra6 {[%clk 0:01:20]}  Rd8 {[%clk 0:01:24]} 31. Rd1 {[%clk 0:01:18]}  Red7 {[%clk 0:01:23]} 32. Rda1 {[%clk 0:01:17]}  Ra8 {[%clk 0:01:17]} 33. b5 {[%clk 0:01:15]}  Rb8 {[%clk 0:01:02]} 34. Rxa7 {[%clk 0:01:10]}  Kf7 {[%clk 0:00:57]} 35. c4 {[%clk 0:01:06]}  Rbb7 {[%clk 0:00:40]} 36. Rxb7 {[%clk 0:01:05]}  Rxb7 {[%clk 0:00:41]} 37. Ra6 {[%clk 0:00:57]}  Ke7 {[%clk 0:00:41]} 38. Kf2 {[%clk 0:00:48]}  Kd7 {[%clk 0:00:40]} 39. Ke2 {[%clk 0:00:47]}  Ke7 {[%clk 0:00:31]} 40. Kd3 {[%clk 0:00:45]}  Bf5+ {[%clk 0:00:26]} 41. Kc3 {[%clk 0:00:39]}  Be6 {[%clk 0:00:26]} 42. Kb4 {[%clk 0:00:39]}  Kd7 {[%clk 0:00:21]} 43. Ra8 {[%clk 0:00:37]}  Ke7 {[%clk 0:00:20]} 44. Ra6 {[%clk 0:00:30]}  Kd7 {[%clk 0:00:19]} 45. Rc6 {[%clk 0:00:25]}  Ra7 {[%clk 0:00:18]} 46. Ra6 {[%clk 0:00:21]}  Rb7 {[%clk 0:00:18]} 1/2-1/2


[Site "https://www.chess.com"]

[Event "Titled Tuesday Blitz February 28 Late 2023"]
[White "Averjanov, Alexey"]
[Black "Mujumdar, Sameer"]
[WhiteFideId "14109867"]
[BlackFideId "2029707"]
[WhiteElo "2661"]
[BlackElo "2104"]
[Result "1-0"]
[Round "04"]
[TimeControl "180+2"]
[Date "2023.02.28"]
[WhiteClock "0:01:16"]
[BlackClock "0:00:54"]

1. d4 {[%clk 0:03:00]}  Nf6 {[%clk 0:02:56]} 2. c4 {[%clk 0:02:58]}  g6 {[%clk 0:02:56]} 3. Nc3 {[%clk 0:02:57]}  Bg7 {[%clk 0:02:57]} 4. e4 {[%clk 0:02:57]}  d6 {[%clk 0:02:57]} 5. Be2 {[%clk 0:02:58]}  O-O {[%clk 0:02:58]} 6. Nf3 {[%clk 0:02:58]}  Nbd7 {[%clk 0:02:57]} 7. O-O {[%clk 0:02:57]}  e5 {[%clk 0:02:57]} 8. Qc2 {[%clk 0:02:58]}  a5 {[%clk 0:02:49]} 9. Rd1 {[%clk 0:02:51]}  Qe7 {[%clk 0:02:48]} 10. d5 {[%clk 0:02:50]}  Nc5 {[%clk 0:02:47]} 11. g3 {[%clk 0:02:39]}  Nfd7 {[%clk 0:02:39]} 12. Nh4 {[%clk 0:02:25]}  a4 {[%clk 0:02:24]} 13. Be3 {[%clk 0:02:22]}  b6 {[%clk 0:02:19]} 14. b4 {[%clk 0:02:18]}  axb3 {[%clk 0:02:19]} 15. axb3 {[%clk 0:02:19]}  Rxa1 {[%clk 0:02:11]} 16. Rxa1 {[%clk 0:02:20]}  Nf6 {[%clk 0:01:53]} 17. b4 {[%clk 0:02:18]}  Ncd7 {[%clk 0:01:49]} 18. Nb5 {[%clk 0:02:18]}  Nxe4 {[%clk 0:01:36]} 19. Qxe4 {[%clk 0:02:15]}  f5 {[%clk 0:01:37]} 20. Qc2 {[%clk 0:02:05]}  f4 {[%clk 0:01:36]} 21. Bd2 {[%clk 0:02:02]}  Nf6 {[%clk 0:01:27]} 22. Bc3 {[%clk 0:01:54]}  e4 {[%clk 0:01:21]} 23. Ra7 {[%clk 0:01:52]}  g5 {[%clk 0:01:13]} 24. Rxc7 {[%clk 0:01:47]}  Qd8 {[%clk 0:01:11]} 25. Rxc8 {[%clk 0:01:33]}  Qxc8 {[%clk 0:01:05]} 26. Nxd6 {[%clk 0:01:33]}  Qd7 {[%clk 0:01:00]} 27. Nhf5 {[%clk 0:01:32]}  f3 {[%clk 0:00:59]} 28. Bf1 {[%clk 0:01:31]}  Ra8 {[%clk 0:00:57]} 29. Nxg7 {[%clk 0:01:26]}  Qxd6 {[%clk 0:00:57]} 30. Nf5 {[%clk 0:01:24]}  Qd7 {[%clk 0:00:54]} 31. Nh6+ {[%clk 0:01:16]} 1-0


[Site "https://www.chess.com"]

[Event "Titled Tuesday Blitz February 28 Late 2023"]
[White "Fiorito, Francisco"]
[Black "Mortazavi, Ali"]
[WhiteFideId "180165"]
[BlackFideId "401323"]
[WhiteElo "2341"]
[BlackElo "2339"]
[Result "0-1"]
[Round "04"]
[TimeControl "180+2"]
[Date "2023.02.28"]
[WhiteClock "0:01:54"]
[BlackClock "0:00:21"]

1. d4 {[%clk 0:03:00]}  Nf6 {[%clk 0:02:59]} 2. Nc3 {[%clk 0:03:00]}  d6 {[%clk 0:02:54]} 3. e4 {[%clk 0:03:00]}  g6 {[%clk 0:02:54]} 4. Be3 {[%clk 0:03:00]}  Nc6 {[%clk 0:02:50]} 5. Qd2 {[%clk 0:02:58]}  Bg7 {[%clk 0:02:36]} 6. f3 {[%clk 0:02:57]}  e5 {[%clk 0:02:27]} 7. dxe5 {[%clk 0:02:55]}  dxe5 {[%clk 0:02:17]} 8. Qxd8+ {[%clk 0:02:54]}  Nxd8 {[%clk 0:02:18]} 9. O-O-O {[%clk 0:02:54]}  O-O {[%clk 0:02:10]} 10. Nb5 {[%clk 0:02:54]}  Ne6 {[%clk 0:02:06]} 11. Bc4 {[%clk 0:02:54]}  a6 {[%clk 0:01:55]} 12. Na7 {[%clk 0:02:46]}  Bd7 {[%clk 0:01:33]} 13. g4 {[%clk 0:02:44]}  Nd4 {[%clk 0:01:19]} 14. g5 {[%clk 0:02:39]}  Nh5 {[%clk 0:01:11]} 15. c3 {[%clk 0:02:39]}  c5 {[%clk 0:01:08]} 16. cxd4 {[%clk 0:02:24]}  cxd4 {[%clk 0:01:08]} 17. Bd2 {[%clk 0:02:23]}  Rxa7 {[%clk 0:01:08]} 18. Kb1 {[%clk 0:02:24]}  Rc8 {[%clk 0:01:04]} 19. Bb3 {[%clk 0:02:22]}  Bb5 {[%clk 0:01:02]} 20. a4 {[%clk 0:02:23]}  Bd3+ {[%clk 0:01:01]} 21. Ka2 {[%clk 0:02:23]}  b5 {[%clk 0:00:58]} 22. a5 {[%clk 0:02:19]}  Rac7 {[%clk 0:00:55]} 23. Bb4 {[%clk 0:02:17]}  Bc2 {[%clk 0:00:49]} 24. Re1 {[%clk 0:02:15]}  Nf4 {[%clk 0:00:45]} 25. Bd2 {[%clk 0:01:57]}  Nd3 {[%clk 0:00:43]} 26. Rf1 {[%clk 0:01:55]}  Bxb3+ {[%clk 0:00:39]} 27. Kxb3 {[%clk 0:01:56]}  Rc2 {[%clk 0:00:39]} 28. Be1 {[%clk 0:01:56]}  Rxb2+ {[%clk 0:00:38]} 29. Ka3 {[%clk 0:01:56]}  Bf8+ {[%clk 0:00:20]} 30. Bb4 {[%clk 0:01:54]}  Bxb4# {[%clk 0:00:21]} 0-1


[Site "https://www.chess.com"]

[Event "Titled Tuesday Blitz February 28 Late 2023"]
[White "Wartiovaara, Oliver"]
[Black "Bjelobrk, Igor"]
[WhiteFideId "513024"]
[BlackFideId "4300726"]
[WhiteElo "2214"]
[BlackElo "2335"]
[Result "1-0"]
[Round "04"]
[TimeControl "180+2"]
[Date "2023.02.28"]
[WhiteClock "0:00:12"]
[BlackClock "0:00:03"]

1. g3 {[%clk 0:03:00]}  c5 {[%clk 0:02:51]} 2. Bg2 {[%clk 0:02:59]}  Nc6 {[%clk 0:02:49]} 3. e3 {[%clk 0:02:57]}  Nf6 {[%clk 0:02:42]} 4. Ne2 {[%clk 0:02:58]}  d5 {[%clk 0:02:41]} 5. O-O {[%clk 0:02:58]}  e5 {[%clk 0:02:40]} 6. d4 {[%clk 0:02:57]}  Be7 {[%clk 0:02:33]} 7. dxe5 {[%clk 0:02:54]}  Nxe5 {[%clk 0:02:33]} 8. Nbc3 {[%clk 0:02:53]}  Bg4 {[%clk 0:02:15]} 9. f3 {[%clk 0:02:52]}  Be6 {[%clk 0:02:13]} 10. f4 {[%clk 0:02:39]}  Nc6 {[%clk 0:02:07]} 11. f5 {[%clk 0:02:37]}  Bd7 {[%clk 0:02:07]} 12. Nxd5 {[%clk 0:02:37]}  Nxd5 {[%clk 0:02:07]} 13. Qxd5 {[%clk 0:02:32]}  O-O {[%clk 0:02:05]} 14. e4 {[%clk 0:02:18]}  Nb4 {[%clk 0:01:55]} 15. Qd1 {[%clk 0:02:10]}  Bb5 {[%clk 0:01:54]} 16. Bd2 {[%clk 0:01:51]}  Nxc2 {[%clk 0:01:48]} 17. Qxc2 {[%clk 0:01:50]}  Bxe2 {[%clk 0:01:48]} 18. Rfe1 {[%clk 0:01:49]}  Bd3 {[%clk 0:01:48]} 19. Qa4 {[%clk 0:01:44]}  b5 {[%clk 0:01:42]} 20. Qa5 {[%clk 0:01:43]}  Qxa5 {[%clk 0:01:36]} 21. Bxa5 {[%clk 0:01:43]}  Bd8 {[%clk 0:01:12]} 22. Bxd8 {[%clk 0:01:38]}  Raxd8 {[%clk 0:01:13]} 23. a4 {[%clk 0:01:37]}  b4 {[%clk 0:01:13]} 24. Rac1 {[%clk 0:01:35]}  c4 {[%clk 0:01:10]} 25. Bf1 {[%clk 0:01:35]}  Rd4 {[%clk 0:01:07]} 26. Bxd3 {[%clk 0:01:27]}  cxd3 {[%clk 0:01:08]} 27. Rcd1 {[%clk 0:01:27]}  Rfd8 {[%clk 0:01:03]} 28. Rd2 {[%clk 0:01:24]}  b3 {[%clk 0:01:01]} 29. Kf2 {[%clk 0:01:22]}  a5 {[%clk 0:00:57]} 30. Ke3 {[%clk 0:01:16]}  Kf8 {[%clk 0:00:50]} 31. Red1 {[%clk 0:01:15]}  Rxa4 {[%clk 0:00:49]} 32. Rxd3 {[%clk 0:01:15]}  Re8 {[%clk 0:00:40]} 33. Rd4 {[%clk 0:01:08]}  Ra2 {[%clk 0:00:40]} 34. R1d2 {[%clk 0:01:08]}  a4 {[%clk 0:00:37]} 35. Rb4 {[%clk 0:00:46]}  h6 {[%clk 0:00:34]} 36. Rb7 {[%clk 0:00:43]}  a3 {[%clk 0:00:22]} 37. Rxb3 {[%clk 0:00:33]}  axb2 {[%clk 0:00:19]} 38. Rbxb2 {[%clk 0:00:33]}  Rxb2 {[%clk 0:00:20]} 39. Rxb2 {[%clk 0:00:34]}  f6 {[%clk 0:00:20]} 40. Kf4 {[%clk 0:00:34]}  Ra8 {[%clk 0:00:21]} 41. h4 {[%clk 0:00:31]}  Ra1 {[%clk 0:00:20]} 42. Rb8+ {[%clk 0:00:29]}  Kf7 {[%clk 0:00:19]} 43. Rb7+ {[%clk 0:00:30]}  Kg8 {[%clk 0:00:20]} 44. Kg4 {[%clk 0:00:25]}  Rc1 {[%clk 0:00:19]} 45. Kh5 {[%clk 0:00:24]}  Kh7 {[%clk 0:00:19]} 46. e5 {[%clk 0:00:22]}  Rc6 {[%clk 0:00:14]} 47. e6 {[%clk 0:00:20]}  Rc8 {[%clk 0:00:14]} 48. g4 {[%clk 0:00:19]}  Re8 {[%clk 0:00:08]} 49. g5 {[%clk 0:00:18]}  hxg5 {[%clk 0:00:08]} 50. hxg5 {[%clk 0:00:19]}  fxg5 {[%clk 0:00:07]} 51. Kxg5 {[%clk 0:00:20]}  Rf8 {[%clk 0:00:05]} 52. Rf7 {[%clk 0:00:15]}  Re8 {[%clk 0:00:03]} 53. e7 {[%clk 0:00:12]}  Kg8 {[%clk 0:00:03]} 54. Kg6 {[%clk 0:00:12]} 1-0


[Site "https://www.chess.com"]